[Event "Early-Titled-Tuesday-Blitz-February-20-2024"]
[Site "Chess.com"]
[Date "2024.02.20"]
[Round "7"]
[White "BozeKat"]
[Black "Preobrazhenska_D2011"]
[Result "0-1"]
[WhiteElo "2132"]
[BlackElo "2380"]
[TimeControl "180+1"]
[EndTime "9:19:40 PST"]
[Termination "Preobrazhenska_D2011 won by resignation"]

1. c4 {[%clk 0:03:00.9]} 1... e5 {[%clk 0:02:57.2]} 2. g3 {[%clk 0:03:01]} 2...
Nf6 {[%clk 0:02:56.9]} 3. Bg2 {[%clk 0:03:01.4]} 3... d5 {[%clk 0:02:57.4]} 4.
cxd5 {[%clk 0:03:01.1]} 4... Nxd5 {[%clk 0:02:58.3]} 5. Nc3 {[%clk 0:03:00.5]}
5... Nb6 {[%clk 0:02:58.7]} 6. Nf3 {[%clk 0:02:56.9]} 6... Nc6 {[%clk
0:02:58.6]} 7. O-O {[%clk 0:02:56.4]} 7... Be7 {[%clk 0:02:58.1]} 8. d3 {[%clk
0:02:56.3]} 8... O-O {[%clk 0:02:57.5]} 9. Nd2 {[%clk 0:02:56.4]} 9... Be6
{[%clk 0:02:47.5]} 10. b3 {[%clk 0:02:54.3]} 10... f5 {[%clk 0:02:46.2]} 11. Nc4
{[%clk 0:02:53.7]} 11... Bf6 {[%clk 0:02:42.1]} 12. Bb2 {[%clk 0:02:52.2]} 12...
Qd7 {[%clk 0:02:17.5]} 13. a3 {[%clk 0:02:22.2]} 13... Rae8 {[%clk 0:01:59.7]}
14. Re1 {[%clk 0:02:05.6]} 14... Nd5 {[%clk 0:01:39.2]} 15. Nxd5 {[%clk
0:02:00.3]} 15... Bxd5 {[%clk 0:01:38.6]} 16. Bxd5+ {[%clk 0:01:43.8]} 16...
Qxd5 {[%clk 0:01:38.4]} 17. Ne3 {[%clk 0:01:40.2]} 17... Qd7 {[%clk 0:01:35.4]}
18. Rc1 {[%clk 0:01:38.1]} 18... Nd4 {[%clk 0:01:33]} 19. Nc4 {[%clk 0:01:17]}
19... Kh8 {[%clk 0:00:50.7]} 20. b4 {[%clk 0:01:14.3]} 20... Qd8 {[%clk
0:00:38.2]} 21. Na5 {[%clk 0:01:08.5]} 21... Qc8 {[%clk 0:00:27.7]} 22. Bxd4
{[%clk 0:00:59.2]} 22... exd4 {[%clk 0:00:27.7]} 23. Qc2 {[%clk 0:00:58.5]}
23... Re7 {[%clk 0:00:19.5]} 24. Nb3 {[%clk 0:00:54]} 24... Rfe8 {[%clk
0:00:13.2]} 25. Kf1 {[%clk 0:00:51.5]} 25... b6 {[%clk 0:00:10.4]} 26. Qc4
{[%clk 0:00:44.5]} 26... Be5 {[%clk 0:00:06.6]} 27. Nxd4 {[%clk 0:00:38.4]}
27... f4 {[%clk 0:00:06.5]} 28. Nc6 {[%clk 0:00:32.3]} 28... Qh3+ {[%clk
0:00:05.8]} 29. Kg1 {[%clk 0:00:31]} 29... fxg3 {[%clk 0:00:06.2]} 30. fxg3
{[%clk 0:00:20.2]} 30... Bxg3 {[%clk 0:00:05.9]} 31. hxg3 {[%clk 0:00:19]} 31...
Qxg3+ {[%clk 0:00:06.8]} 32. Kh1 {[%clk 0:00:18.4]} 32... Re6 {[%clk 0:00:07.1]}
0-1

[Event "Early-Titled-Tuesday-Blitz-February-20-2024"]
[Site "Chess.com"]
[Date "2024.02.20"]
[Round "7"]
[White "nj123456"]
[Black "Agentxya"]
[Result "1-0"]
[WhiteElo "2442"]
[BlackElo "2212"]
[TimeControl "180+1"]
[EndTime "9:19:42 PST"]
[Termination "nj123456 won by checkmate"]

1. e4 {[%clk 0:03:00.9]} 1... e5 {[%clk 0:02:58.4]} 2. Nf3 {[%clk 0:03:00.1]}
2... Nc6 {[%clk 0:02:54.7]} 3. Bb5 {[%clk 0:02:59.1]} 3... Nf6 {[%clk
0:02:54.7]} 4. O-O {[%clk 0:02:57.5]} 4... Nxe4 {[%clk 0:02:55]} 5. Re1 {[%clk
0:02:55.3]} 5... Nd6 {[%clk 0:02:55.2]} 6. Nxe5 {[%clk 0:02:55.9]} 6... Be7
{[%clk 0:02:52.6]} 7. Bf1 {[%clk 0:02:55.7]} 7... Nxe5 {[%clk 0:02:52.2]} 8.
Rxe5 {[%clk 0:02:56.6]} 8... O-O {[%clk 0:02:52.4]} 9. d4 {[%clk 0:02:56.1]}
9... Bf6 {[%clk 0:02:52.6]} 10. Re1 {[%clk 0:02:56.7]} 10... Re8 {[%clk
0:02:50.6]} 11. c3 {[%clk 0:02:47.5]} 11... Rxe1 {[%clk 0:02:45.4]} 12. Qxe1
{[%clk 0:02:48.4]} 12... Ne8 {[%clk 0:02:36.4]} 13. d5 {[%clk 0:02:43.5]} 13...
d6 {[%clk 0:02:35.7]} 14. Bd3 {[%clk 0:02:42.7]} 14... g6 {[%clk 0:02:34.8]} 15.
Nd2 {[%clk 0:02:35.2]} 15... Bg7 {[%clk 0:02:33]} 16. Ne4 {[%clk 0:02:34.1]}
16... Bf5 {[%clk 0:02:30.7]} 17. Bg5 {[%clk 0:02:29.3]} 17... Qd7 {[%clk
0:02:30.5]} 18. Qd2 {[%clk 0:02:14.3]} 18... Bxe4 {[%clk 0:02:27]} 19. Bxe4
{[%clk 0:02:15.2]} 19... Nf6 {[%clk 0:02:27.5]} 20. Bf3 {[%clk 0:02:13.8]} 20...
Qf5 {[%clk 0:02:27.5]} 21. Re1 {[%clk 0:02:09.4]} 21... Qd7 {[%clk 0:02:06.9]}
22. Qf4 {[%clk 0:02:04.4]} 22... Re8 {[%clk 0:02:03]} 23. Rd1 {[%clk 0:01:57.4]}
23... Qf5 {[%clk 0:01:50.9]} 24. Qxf5 {[%clk 0:01:56.4]} 24... gxf5 {[%clk
0:01:51.8]} 25. Be3 {[%clk 0:01:47.3]} 25... Ng4 {[%clk 0:01:40.9]} 26. Bc1
{[%clk 0:01:39.1]} 26... Ne5 {[%clk 0:01:40.1]} 27. Be2 {[%clk 0:01:36.1]} 27...
a6 {[%clk 0:01:24.5]} 28. Kf1 {[%clk 0:01:35.4]} 28... Kf8 {[%clk 0:01:23.5]}
29. f3 {[%clk 0:01:32.5]} 29... Ke7 {[%clk 0:01:22.8]} 30. Be3 {[%clk
0:01:24.8]} 30... Kd7 {[%clk 0:01:21.1]} 31. Bd4 {[%clk 0:01:24]} 31... f6
{[%clk 0:01:18.6]} 32. Re1 {[%clk 0:01:20.3]} 32... Bh6 {[%clk 0:01:17.7]} 33.
Bd1 {[%clk 0:00:54.7]} 33... c5 {[%clk 0:01:09.2]} 34. dxc6+ {[%clk 0:00:50.9]}
34... bxc6 {[%clk 0:01:10.1]} 35. Bc2 {[%clk 0:00:50.9]} 35... c5 {[%clk
0:01:00.9]} 36. Ba4+ {[%clk 0:00:49.4]} 36... Ke7 {[%clk 0:00:49.3]} 37. Bxe5
{[%clk 0:00:47.5]} 37... fxe5 {[%clk 0:00:45.7]} 38. Bxe8 {[%clk 0:00:47.1]}
38... Kxe8 {[%clk 0:00:46.6]} 39. c4 {[%clk 0:00:46.6]} 39... Kd7 {[%clk
0:00:45]} 40. Ke2 {[%clk 0:00:46.4]} 40... Kc6 {[%clk 0:00:41.5]} 41. Kd3 {[%clk
0:00:46.5]} 41... Bg5 {[%clk 0:00:37.6]} 42. g4 {[%clk 0:00:46.3]} 42... f4
{[%clk 0:00:32.2]} 43. Ke4 {[%clk 0:00:46.1]} 43... h6 {[%clk 0:00:29]} 44. Rd1
{[%clk 0:00:43.7]} 44... a5 {[%clk 0:00:26.5]} 45. Kf5 {[%clk 0:00:40.7]} 45...
Bd8 {[%clk 0:00:20.6]} 46. Ke6 {[%clk 0:00:39.4]} 46... Bc7 {[%clk 0:00:20.7]}
47. h4 {[%clk 0:00:39.4]} 47... Bb8 {[%clk 0:00:20.1]} 48. g5 {[%clk 0:00:39.3]}
48... hxg5 {[%clk 0:00:19.2]} 49. hxg5 {[%clk 0:00:40.2]} 49... e4 {[%clk
0:00:19.3]} 50. fxe4 {[%clk 0:00:40.1]} 50... f3 {[%clk 0:00:19.5]} 51. g6
{[%clk 0:00:40.1]} 51... d5 {[%clk 0:00:18.4]} 52. cxd5+ {[%clk 0:00:39.1]}
52... Kb5 {[%clk 0:00:18.6]} 53. g7 {[%clk 0:00:39.3]} 53... f2 {[%clk
0:00:17.5]} 54. g8=Q {[%clk 0:00:38.7]} 54... Bf4 {[%clk 0:00:17.4]} 55. Qe8+
{[%clk 0:00:37.6]} 55... Kc4 {[%clk 0:00:17.1]} 56. Qa4# {[%clk 0:00:37.3]} 1-0

[Event "Early-Titled-Tuesday-Blitz-February-20-2024"]
[Site "Chess.com"]
[Date "2024.02.20"]
[Round "7"]
[White "GOGIEFF"]
[Black "Hovik_Hayrapetyan"]
[Result "0-1"]
[WhiteElo "3014"]
[BlackElo "2901"]
[TimeControl "180+1"]
[EndTime "9:19:43 PST"]
[Termination "Hovik_Hayrapetyan won by resignation"]

1. c4 {[%clk 0:03:00.9]} 1... e6 {[%clk 0:02:59.6]} 2. Nf3 {[%clk 0:03:00]} 2...
d5 {[%clk 0:02:59.8]} 3. g3 {[%clk 0:03:00.5]} 3... Nf6 {[%clk 0:03:00.3]} 4.
Bg2 {[%clk 0:03:00.9]} 4... Be7 {[%clk 0:03:00.6]} 5. O-O {[%clk 0:03:01.1]}
5... O-O {[%clk 0:03:01.3]} 6. d4 {[%clk 0:03:01.6]} 6... dxc4 {[%clk
0:03:01.7]} 7. Qc2 {[%clk 0:03:02]} 7... a6 {[%clk 0:03:02]} 8. Qxc4 {[%clk
0:03:02.2]} 8... Bd7 {[%clk 0:03:02.2]} 9. Rd1 {[%clk 0:02:52.7]} 9... Bc6
{[%clk 0:02:51.8]} 10. Nc3 {[%clk 0:02:51.8]} 10... b5 {[%clk 0:02:46]} 11. Qb3
{[%clk 0:02:46]} 11... b4 {[%clk 0:02:29.5]} 12. Na4 {[%clk 0:02:40.2]} 12...
Qe8 {[%clk 0:02:28.8]} 13. Nc5 {[%clk 0:02:33.7]} 13... Bxc5 {[%clk 0:02:28.4]}
14. dxc5 {[%clk 0:02:34]} 14... Ba4 {[%clk 0:02:29]} 15. Qd3 {[%clk 0:02:34.2]}
15... Bxd1 {[%clk 0:02:28.6]} 16. Qxd1 {[%clk 0:02:35.1]} 16... Nc6 {[%clk
0:02:23.9]} 17. Bg5 {[%clk 0:02:31.3]} 17... Rd8 {[%clk 0:02:19.5]} 18. Qa4
{[%clk 0:02:11.7]} 18... Nd4 {[%clk 0:02:08.3]} 19. Qxa6 {[%clk 0:02:04.8]}
19... h6 {[%clk 0:01:48.9]} 20. Nxd4 {[%clk 0:01:47.2]} 20... hxg5 {[%clk
0:01:38.9]} 21. Nc6 {[%clk 0:01:45.8]} 21... Rd2 {[%clk 0:01:38.7]} 22. Nxb4
{[%clk 0:01:22.6]} 22... Rxb2 {[%clk 0:01:33.1]} 23. Qa3 {[%clk 0:00:58.9]}
23... Rxe2 {[%clk 0:01:27.3]} 24. Qd3 {[%clk 0:00:48.4]} 24... Re5 {[%clk
0:01:16.1]} 25. Qd4 {[%clk 0:00:37.3]} 25... Rf5 {[%clk 0:01:14.8]} 26. a4
{[%clk 0:00:37.1]} 26... Nd5 {[%clk 0:00:53.1]} 27. a5 {[%clk 0:00:31.5]} 27...
Qb5 {[%clk 0:00:40.7]} 28. Nxd5 {[%clk 0:00:30.7]} 28... exd5 {[%clk 0:00:40.2]}
29. a6 {[%clk 0:00:30.1]} 29... Ra8 {[%clk 0:00:31.7]} 30. Bf1 {[%clk
0:00:29.4]} 30... Qc6 {[%clk 0:00:27.1]} 31. Bd3 {[%clk 0:00:23.2]} 31... Qf6
{[%clk 0:00:23.8]} 32. Qxf6 {[%clk 0:00:18.3]} 32... Rxf6 {[%clk 0:00:24.7]} 33.
Rb1 {[%clk 0:00:17.5]} 33... g6 {[%clk 0:00:09.4]} 34. Rb7 {[%clk 0:00:15]}
34... Rc6 {[%clk 0:00:09.4]} 35. a7 {[%clk 0:00:14]} 35... Kg7 {[%clk
0:00:09.9]} 0-1

[Event "Early-Titled-Tuesday-Blitz-February-20-2024"]
[Site "Chess.com"]
[Date "2024.02.20"]
[Round "7"]
[White "Cuchulin"]
[Black "Alblooshi_Hamad"]
[Result "0-1"]
[WhiteElo "2040"]
[BlackElo "2171"]
[TimeControl "180+1"]
[EndTime "9:19:44 PST"]
[Termination "Alblooshi_Hamad won on time"]

1. d4 {[%clk 0:02:59.5]} 1... Nf6 {[%clk 0:02:59.8]} 2. Bf4 {[%clk 0:03:00.1]}
2... d5 {[%clk 0:03:00]} 3. e3 {[%clk 0:02:59]} 3... c5 {[%clk 0:03:00.2]} 4.
Nc3 {[%clk 0:02:58.3]} 4... a6 {[%clk 0:02:59.6]} 5. dxc5 {[%clk 0:02:56.3]}
5... Nc6 {[%clk 0:02:58.9]} 6. Nf3 {[%clk 0:02:55.8]} 6... Bg4 {[%clk
0:02:58.1]} 7. Be2 {[%clk 0:02:53.2]} 7... e6 {[%clk 0:02:57.1]} 8. Na4 {[%clk
0:02:49.8]} 8... Bxc5 {[%clk 0:02:13.5]} 9. Nxc5 {[%clk 0:02:50.7]} 9... Qa5+
{[%clk 0:02:13.7]} 10. c3 {[%clk 0:02:50.2]} 10... Qxc5 {[%clk 0:02:13.9]} 11.
O-O {[%clk 0:02:50.9]} 11... O-O {[%clk 0:02:13.6]} 12. h3 {[%clk 0:02:50.4]}
12... Bh5 {[%clk 0:02:13.6]} 13. a4 {[%clk 0:02:40.1]} 13... Rfe8 {[%clk
0:02:12.3]} 14. Ne5 {[%clk 0:02:34.8]} 14... Bxe2 {[%clk 0:02:09.9]} 15. Qxe2
{[%clk 0:02:34.8]} 15... Ne4 {[%clk 0:01:40.4]} 16. Nd7 {[%clk 0:02:24.9]} 16...
Qe7 {[%clk 0:01:37.4]} 17. Nb6 {[%clk 0:02:19.1]} 17... Rad8 {[%clk 0:01:37.1]}
18. Rfd1 {[%clk 0:01:59.5]} 18... Na5 {[%clk 0:01:33.4]} 19. c4 {[%clk
0:01:27.9]} 19... Qc5 {[%clk 0:01:21.9]} 20. b4 {[%clk 0:01:18]} 20... Qxb6
{[%clk 0:00:55.6]} 21. bxa5 {[%clk 0:01:17.3]} 21... Qxa5 {[%clk 0:00:56.5]} 22.
Rdc1 {[%clk 0:01:02.7]} 22... dxc4 {[%clk 0:00:50.5]} 23. Qxc4 {[%clk
0:01:02.6]} 23... Qf5 {[%clk 0:00:26.4]} 24. Qc7 {[%clk 0:00:51.6]} 24... e5
{[%clk 0:00:25]} 25. Bg3 {[%clk 0:00:34.3]} 25... Nxg3 {[%clk 0:00:17.7]} 26.
fxg3 {[%clk 0:00:35.2]} 26... Rd2 {[%clk 0:00:16.1]} 27. Rf1 {[%clk 0:00:31.3]}
27... Qd7 {[%clk 0:00:16.4]} 28. Qc4 {[%clk 0:00:22.6]} 28... Rc8 {[%clk
0:00:14.8]} 29. Qe4 {[%clk 0:00:10.6]} 29... Qd5 {[%clk 0:00:10]} 30. Qf5 {[%clk
0:00:05.7]} 30... Rf8 {[%clk 0:00:09.8]} 31. Rab1 {[%clk 0:00:04.6]} 31... b5
{[%clk 0:00:09.3]} 32. axb5 {[%clk 0:00:04]} 32... axb5 {[%clk 0:00:10.2]} 33.
Rb4 {[%clk 0:00:01.1]} 33... Qc5 {[%clk 0:00:07.1]} 0-1

[Event "Early-Titled-Tuesday-Blitz-February-20-2024"]
[Site "Chess.com"]
[Date "2024.02.20"]
[Round "7"]
[White "mary-sanna"]
[Black "falzehope0"]
[Result "0-1"]
[WhiteElo "2157"]
[BlackElo "2403"]
[TimeControl "180+1"]
[EndTime "9:19:49 PST"]
[Termination "falzehope0 won on time"]

1. d4 {[%clk 0:02:47.1]} 1... d6 {[%clk 0:02:57.8]} 2. e4 {[%clk 0:02:43.5]}
2... Nf6 {[%clk 0:02:57.3]} 3. Nc3 {[%clk 0:02:43.1]} 3... Nbd7 {[%clk
0:02:57.1]} 4. Nge2 {[%clk 0:02:42.2]} 4... e5 {[%clk 0:02:57.1]} 5. g3 {[%clk
0:02:34]} 5... Be7 {[%clk 0:02:57.2]} 6. Bg2 {[%clk 0:02:34]} 6... c6 {[%clk
0:02:57.3]} 7. O-O {[%clk 0:02:34]} 7... Nf8 {[%clk 0:02:55.5]} 8. h3 {[%clk
0:02:28.3]} 8... Ng6 {[%clk 0:02:54.8]} 9. Kh2 {[%clk 0:02:27.2]} 9... Qc7
{[%clk 0:02:54.5]} 10. f4 {[%clk 0:02:22.9]} 10... exf4 {[%clk 0:02:49.6]} 11.
Nxf4 {[%clk 0:02:21.3]} 11... O-O {[%clk 0:02:43.4]} 12. Be3 {[%clk 0:02:11.7]}
12... Qb6 {[%clk 0:02:39.6]} 13. Rb1 {[%clk 0:02:04.9]} 13... Re8 {[%clk
0:02:35.7]} 14. Qf3 {[%clk 0:02:03.4]} 14... Bd8 {[%clk 0:02:23.2]} 15. Nxg6
{[%clk 0:01:52.2]} 15... hxg6 {[%clk 0:02:08.5]} 16. e5 {[%clk 0:01:52.2]} 16...
d5 {[%clk 0:01:49.6]} 17. exf6 {[%clk 0:01:51.4]} 17... Bxf6 {[%clk 0:01:50.5]}
18. Ne2 {[%clk 0:01:39.4]} 18... Bf5 {[%clk 0:01:48.3]} 19. Rfc1 {[%clk
0:01:31.7]} 19... Qa6 {[%clk 0:01:43]} 20. Nc3 {[%clk 0:01:26]} 20... Re7 {[%clk
0:01:31.9]} 21. g4 {[%clk 0:01:16.5]} 21... Be4 {[%clk 0:01:20]} 22. Nxe4 {[%clk
0:01:11]} 22... Rxe4 {[%clk 0:01:17.3]} 23. Bf1 {[%clk 0:01:01.2]} 23... Qxa2
{[%clk 0:01:11]} 24. c3 {[%clk 0:00:58.4]} 24... Rae8 {[%clk 0:01:06.2]} 25. Bf2
{[%clk 0:00:58.5]} 25... Bg5 {[%clk 0:00:55]} 26. Re1 {[%clk 0:00:40.8]} 26...
Rxe1 {[%clk 0:00:51.3]} 27. Rxe1 {[%clk 0:00:40.4]} 27... Rxe1 {[%clk
0:00:49.9]} 28. Bxe1 {[%clk 0:00:41.3]} 28... Qxb2+ {[%clk 0:00:49.6]} 29. Qe2
{[%clk 0:00:40.7]} 29... Bf4+ {[%clk 0:00:33.8]} 30. Kg2 {[%clk 0:00:36.9]}
30... Qb1 {[%clk 0:00:26.8]} 31. Kf3 {[%clk 0:00:31.2]} 31... Bd6 {[%clk
0:00:15.4]} 32. Bd2 {[%clk 0:00:23.9]} 32... a5 {[%clk 0:00:14.1]} 33. h4 {[%clk
0:00:13.5]} 33... a4 {[%clk 0:00:13.7]} 34. h5 {[%clk 0:00:13.8]} 34... gxh5
{[%clk 0:00:13.4]} 35. gxh5 {[%clk 0:00:11.4]} 35... a3 {[%clk 0:00:13.3]} 36.
Qe8+ {[%clk 0:00:09.9]} 36... Bf8 {[%clk 0:00:12.1]} 37. Qe1 {[%clk 0:00:01.9]}
37... a2 {[%clk 0:00:09.7]} 0-1

[Event "Early-Titled-Tuesday-Blitz-February-20-2024"]
[Site "Chess.com"]
[Date "2024.02.20"]
[Round "7"]
[White "shimastream"]
[Black "VitaliyBernadskiy"]
[Result "1-0"]
[WhiteElo "2984"]
[BlackElo "2872"]
[TimeControl "180+1"]
[EndTime "9:19:50 PST"]
[Termination "shimastream won on time"]

1. e4 {[%clk 0:03:00.9]} 1... c5 {[%clk 0:02:58]} 2. Nf3 {[%clk 0:02:55.2]} 2...
Nc6 {[%clk 0:02:58.2]} 3. Nc3 {[%clk 0:02:54.4]} 3... e5 {[%clk 0:02:57.2]} 4.
Bc4 {[%clk 0:02:53.4]} 4... Be7 {[%clk 0:02:57.3]} 5. d3 {[%clk 0:02:53.7]} 5...
Nf6 {[%clk 0:02:57.1]} 6. a4 {[%clk 0:02:40.7]} 6... O-O {[%clk 0:02:56.3]} 7.
Bg5 {[%clk 0:02:39.4]} 7... d6 {[%clk 0:02:54.6]} 8. Bxf6 {[%clk 0:02:39.5]}
8... Bxf6 {[%clk 0:02:54.4]} 9. Nd5 {[%clk 0:02:40.4]} 9... Be6 {[%clk
0:02:45.7]} 10. h3 {[%clk 0:02:33.9]} 10... g6 {[%clk 0:02:24.8]} 11. h4 {[%clk
0:02:24.7]} 11... h5 {[%clk 0:02:09.2]} 12. Ne3 {[%clk 0:02:23.6]} 12... Nd4
{[%clk 0:02:01.1]} 13. g3 {[%clk 0:01:53.5]} 13... Nxf3+ {[%clk 0:01:48.4]} 14.
Qxf3 {[%clk 0:01:53.1]} 14... Bg7 {[%clk 0:01:48.7]} 15. g4 {[%clk 0:01:37.3]}
15... hxg4 {[%clk 0:01:47.4]} 16. Nxg4 {[%clk 0:01:38.2]} 16... Bxc4 {[%clk
0:01:46.2]} 17. dxc4 {[%clk 0:01:39.1]} 17... f5 {[%clk 0:01:39.5]} 18. Ne3
{[%clk 0:01:30]} 18... fxe4 {[%clk 0:00:52.7]} 19. Qxe4 {[%clk 0:01:29.8]} 19...
Qf6 {[%clk 0:00:52.8]} 20. O-O-O {[%clk 0:01:25.2]} 20... Bh6 {[%clk 0:00:50.6]}
21. Kb1 {[%clk 0:01:21.5]} 21... Bxe3 {[%clk 0:00:48.8]} 22. fxe3 {[%clk
0:01:22.4]} 22... Rf7 {[%clk 0:00:44.1]} 23. Rdg1 {[%clk 0:01:14.5]} 23... Rg7
{[%clk 0:00:43.2]} 24. Rg5 {[%clk 0:01:11.8]} 24... Rf8 {[%clk 0:00:26.5]} 25.
Rhg1 {[%clk 0:00:59.8]} 25... Qf3 {[%clk 0:00:26.6]} 26. Qd3 {[%clk 0:01:00]}
26... e4 {[%clk 0:00:17.6]} 27. Qd5+ {[%clk 0:00:58.8]} 27... Kh8 {[%clk
0:00:06.2]} 28. Rxg6 {[%clk 0:00:49.2]} 28... Rxg6 {[%clk 0:00:04.8]} 29. Rxg6
{[%clk 0:00:50.1]} 29... Qf5 {[%clk 0:00:02.5]} 30. Rxd6 {[%clk 0:00:34.1]}
30... Qxd5 {[%clk 0:00:01.9]} 31. Rxd5 {[%clk 0:00:35]} 31... Rf3 {[%clk
0:00:01.9]} 32. Rxc5 {[%clk 0:00:31.7]} 32... Rxe3 {[%clk 0:00:01.7]} 33. Kc1
{[%clk 0:00:29.1]} 33... Rh3 {[%clk 0:00:01.3]} 34. Re5 {[%clk 0:00:23]} 34...
e3 {[%clk 0:00:01.2]} 35. Kd1 {[%clk 0:00:18.9]} 35... Rxh4 {[%clk 0:00:01.6]}
36. b3 {[%clk 0:00:16.9]} 36... Rh1+ {[%clk 0:00:01.6]} 37. Ke2 {[%clk
0:00:17.2]} 37... Rh2+ {[%clk 0:00:02.5]} 38. Kd3 {[%clk 0:00:17.6]} 38... Rd2+
{[%clk 0:00:02.3]} 39. Kc3 {[%clk 0:00:17.8]} 39... Re2 {[%clk 0:00:02.7]} 40.
Re7 {[%clk 0:00:14.7]} 40... b6 {[%clk 0:00:02]} 41. b4 {[%clk 0:00:14.1]} 1-0

[Event "Early-Titled-Tuesday-Blitz-February-20-2024"]
[Site "Chess.com"]
[Date "2024.02.20"]
[Round "7"]
[White "SaiAgni_98"]
[Black "mbchess97"]
[Result "1/2-1/2"]
[WhiteElo "2570"]
[BlackElo "2466"]
[TimeControl "180+1"]
[EndTime "9:19:50 PST"]
[Termination "Game drawn by repetition"]

1. e4 {[%clk 0:02:54.1]} 1... c5 {[%clk 0:02:41.5]} 2. Nf3 {[%clk 0:02:54]} 2...
d6 {[%clk 0:02:40.6]} 3. Bb5+ {[%clk 0:02:53.7]} 3... Bd7 {[%clk 0:02:40.2]} 4.
Bxd7+ {[%clk 0:02:52.5]} 4... Nxd7 {[%clk 0:02:41.1]} 5. O-O {[%clk 0:02:52.3]}
5... Ngf6 {[%clk 0:02:41]} 6. Re1 {[%clk 0:02:50.7]} 6... g6 {[%clk 0:02:41.3]}
7. c4 {[%clk 0:02:48.2]} 7... Bg7 {[%clk 0:02:37.9]} 8. Nc3 {[%clk 0:02:49.1]}
8... O-O {[%clk 0:02:37.1]} 9. h3 {[%clk 0:02:49.6]} 9... Rc8 {[%clk 0:02:25]}
10. d3 {[%clk 0:02:49.6]} 10... a6 {[%clk 0:02:21.9]} 11. Be3 {[%clk 0:02:49.4]}
11... Qa5 {[%clk 0:02:18.3]} 12. Qd2 {[%clk 0:02:34.3]} 12... Rfe8 {[%clk
0:01:58.9]} 13. a4 {[%clk 0:02:22.9]} 13... Qb4 {[%clk 0:01:46.4]} 14. Ra3
{[%clk 0:02:19.9]} 14... Ne5 {[%clk 0:01:29.4]} 15. Nxe5 {[%clk 0:02:07.5]}
15... dxe5 {[%clk 0:01:29.4]} 16. a5 {[%clk 0:02:08.2]} 16... b5 {[%clk
0:01:25.4]} 17. axb6 {[%clk 0:02:01.7]} 17... Qxb6 {[%clk 0:01:22.9]} 18. Rea1
{[%clk 0:02:01.2]} 18... Rb8 {[%clk 0:01:22.7]} 19. Na4 {[%clk 0:01:58.7]} 19...
Qb4 {[%clk 0:01:14.8]} 20. Nxc5 {[%clk 0:01:56.7]} 20... Qxd2 {[%clk 0:01:14]}
21. Bxd2 {[%clk 0:01:57.6]} 21... Rxb2 {[%clk 0:01:13.5]} 22. Bc3 {[%clk
0:01:58.3]} 22... Rc2 {[%clk 0:01:11.4]} 23. Bxe5 {[%clk 0:01:58.4]} 23... Nxe4
{[%clk 0:00:57.8]} 24. Bxg7 {[%clk 0:01:47.7]} 24... Nxc5 {[%clk 0:00:57.7]} 25.
Bd4 {[%clk 0:01:47.9]} 25... Ne6 {[%clk 0:00:55.4]} 26. Be3 {[%clk 0:01:48.1]}
26... Rd8 {[%clk 0:00:52.8]} 27. Rd1 {[%clk 0:01:40.4]} 27... Rd6 {[%clk
0:00:48.2]} 28. Rb1 {[%clk 0:01:33]} 28... f5 {[%clk 0:00:46]} 29. g3 {[%clk
0:01:28.9]} 29... Kf7 {[%clk 0:00:42.9]} 30. Rb7 {[%clk 0:01:28.3]} 30... Nd4
{[%clk 0:00:40.5]} 31. Ra7 {[%clk 0:01:22.7]} 31... Nf3+ {[%clk 0:00:34.5]} 32.
Kf1 {[%clk 0:01:22.1]} 32... Ne5 {[%clk 0:00:30.1]} 33. R7xa6 {[%clk 0:01:09.3]}
33... Rxa6 {[%clk 0:00:21]} 34. Rxa6 {[%clk 0:01:09.2]} 34... Nxd3 {[%clk
0:00:21.3]} 35. Ra3 {[%clk 0:00:58.7]} 35... Ne5 {[%clk 0:00:17.2]} 36. c5
{[%clk 0:00:59.1]} 36... Nd7 {[%clk 0:00:16.2]} 37. Ra5 {[%clk 0:00:59.4]} 37...
Ke6 {[%clk 0:00:14.6]} 38. Kg2 {[%clk 0:00:56.4]} 38... Kd5 {[%clk 0:00:14.5]}
39. Ra7 {[%clk 0:00:54.4]} 39... Nxc5 {[%clk 0:00:14.2]} 40. Rxe7 {[%clk
0:00:54.4]} 40... Ne6 {[%clk 0:00:12.3]} 41. Rxh7 {[%clk 0:00:53.6]} 41... Ke4
{[%clk 0:00:12]} 42. Re7 {[%clk 0:00:52.7]} 42... Ke5 {[%clk 0:00:11.9]} 43. h4
{[%clk 0:00:50.3]} 43... f4 {[%clk 0:00:11]} 44. Bxf4+ {[%clk 0:00:49.6]} 44...
Kf6 {[%clk 0:00:11.2]} 45. Ra7 {[%clk 0:00:39.6]} 45... Nxf4+ {[%clk 0:00:11]}
46. gxf4 {[%clk 0:00:40.5]} 46... Rc3 {[%clk 0:00:11.4]} 47. f3 {[%clk
0:00:39.7]} 47... Kf5 {[%clk 0:00:11.7]} 48. Kg3 {[%clk 0:00:39.9]} 48... Rc1
{[%clk 0:00:12]} 49. Ra5+ {[%clk 0:00:40]} 49... Kf6 {[%clk 0:00:12]} 50. Ra6+
{[%clk 0:00:40.9]} 50... Kf5 {[%clk 0:00:12.2]} 51. Ra5+ {[%clk 0:00:41.3]}
51... Kf6 {[%clk 0:00:12.7]} 52. Kf2 {[%clk 0:00:41.8]} 52... Rc2+ {[%clk
0:00:12.4]} 53. Kg3 {[%clk 0:00:39.1]} 53... Rc1 {[%clk 0:00:12.8]} 1/2-1/2